Cogmind - Beta 17.1 @@@ ROGUE MODE // 2026.09.23 @ 20:24:47 Player: Figgis Result: Destroyed by D-53 Grenadier with Mini Grenade Launcher Performance ------------- Evolutions (0) 0 Regions Visited (2) 400 Robots Destroyed (18) 90 Value Destroyed (403) 403 Prototype IDs (0) 0 Alien Tech Used (0) 0 Bonus (-26) -26 TOTAL SCORE: 867 Bonus ------- Follower Combat Kills 7 Friendly Fire -33 Cogmind --------- Core Integrity 0/250 Matter 298/300 Energy 98/100 System Corruption 0% Temperature Cool (92) Movement Treading (240) Ox1 Location -10/Mines Parts ------- > --- POWER (1) -------- (None) > --- PROPULSION (2) --- Light Treads > --- UTILITY (2) ------ Large Storage Unit > --- WEAPON (2) ------- Medium Laser > --- INVENTORY (15) --- Ion Engine Light Ion Engine Improved Ion Engine Light Treads Light Treads Compact Wheel Improved Heat Sink Targeting Computer Hardened Light Armor Plating Splice Drone Bay EM Pulse Gun Light Cannon Grenade Launcher Mining Laser Peak State ------------ > --- POWER ------------ Light Ion Engine > --- PROPULSION ------- Light Treads Light Treads > --- UTILITY ---------- Large Storage Unit Hardened Light Armor Plating > --- WEAPON ----------- Medium Laser Light Cannon > --- INVENTORY -------- Ion Engine Light Ion Engine Improved Ion Engine Light Treads Light Treads Compact Wheel Improved Heat Sink Targeting Computer Hardened Light Armor Plating Splice Drone Bay EM Pulse Gun Light Cannon Grenade Launcher Mining Laser [Rating: 10] Favorites ----------- Power Light Ion Engine Engine Light Ion Engine Propulsion Light Treads Treads Light Treads Utility Hardened Light Armor Plating Device Improved Heat Sink Storage Large Storage Unit Protection Hardened Light Armor Plating Weapon Medium Laser Energy Gun Medium Laser Ballistic Gun Assault Rifle Ballistic Cannon Light Cannon Build | -11 -10 -10 ------- Run | Yrd Mat Min Slots Evolved . | . . . Power . | . . . Propulsion . | . . . Utility . | . . . Weapon . | . . . Parts Attached 14 | 3 10 1 Power 1 | . 1 . Engine 1 | . 1 . Core . | . . . Reactor . | . . . Propulsion 3 | 2 . 1 Treads 3 | 2 . 1 Leg . | . . . Wheel . | . . . Hover . | . . . Flight . | . . . Utility 5 | . 5 . Device 1 | . 1 . Storage 2 | . 2 . Processor . | . . . Hackware . | . . . Protection 2 | . 2 . Artifact . | . . . Weapon 5 | 1 4 . Energy Gun 3 | 1 2 . Energy Cannon . | . . . Ballistic Gun 1 | . 1 . Ballistic Cannon 1 | . 1 . Launcher . | . . . Special Weapon . | . . . Impact Weapon . | . . . Slashing Weapon . | . . . Piercing Weapon . | . . . Special Melee Weapon . | . . . Unidentified Prototypes . | . . . Parts Lost 6 | . 2 4 Power 1 | . . 1 Propulsion 1 | . . 1 Utility 2 | . 1 1 Weapon 2 | . 1 1 Highest Loss Streak 4 | . 2 4 To Critical Strikes . | . . . Average Backups 8 | 2 6 10 Power 2 | . 1 2 Propulsion 1 | . . 2 Utility 2 | . 2 3 Weapon 2 | 1 1 3 Tool/Special . | . . . Unused Backups 11 | . . 11 Power 3 | . . 3 Propulsion 3 | . . 3 Utility 2 | . . 2 Weapon 3 | . . 3 Tool/Special . | . . . Average Slot Usage (%) 91 | . 94 88 Engine 13 | . 13 13 Treads 21 | . 23 17 Storage 13 | . 13 14 Protection 13 | . 12 14 Energy Gun 14 | . 14 14 Ballistic Gun 3 | . 5 . Ballistic Cannon 10 | . 8 14 Peak Build Rating 10 | 3 9 10 Average Rating 8 | 1 8 8 On Entrance 3 | . 3 8 Avg Prop Armor Cover (%) 35 | 36 34 . Naked Turns . | . . . Heaviest Build 33 | 2 33 33 Greatest Support 40 | 3 40 40 Greatest Overweight (x) 1 | . 1 1 Average Overweight (x) . | . . . Largest Inventory Capacity 15 | 5 15 15 Average Capacity 13 | 5 12 15 Most Carried 14 | 5 8 14 Average Carried 8 | 3 6 10 Final Capacity 15 | 5 15 15 Final Carried 14 | 5 8 14 Class Distribution -------------------- 100% | Mutant Dominant Class ---------------- Mutant | -10/Materials Mutant | -10/Mines Resources | -11 -10 -10 ----------- Run | Yrd Mat Min Matter Collected 491 | 219 247 25 Remotely . | . . . Salvage Created 526 | . 512 14 Parts 38 | . 35 3 Haulers Intercepted 1 | . 1 . Recyclers Shooed . | . . . Parts Field Recycled . | . . . Retrieved Matter . | . . . Parts Self-Destructed . | . . . Prevented . | . . . Parts Restored . | . . . Kills | -11 -10 -10 ------- Run | Yrd Mat Min Combat Hostiles Destroyed 13 | . 11 2 Guns 10 | . 10 . Cannons 3 | . 1 2 Classes Destroyed 5 | . 5 . Builder 1 | . 1 . Hauler 1 | . 1 . Watcher 3 | . 3 . Swarmer 5 | . 3 2 Grunt 8 | . 8 . Best Kill Streak 5 | . 5 2 Combat Bots Only 5 | . 5 2 Max Kills in Single Turn 2 | . 2 1 Gunslinging . | . . . Exploded . | . . . Melee . | . . . Uniques/NPCs Destroyed . | . . . Combat | -11 -10 -10 -------- Run | Yrd Mat Min Hostile Shots Fired 98 | . 71 27 Missed 24 | . 19 5 Hits 74 | . 52 22 Projectile 74 | . 52 22 AOE 14 | . . 14 Critical Strikes 1 | . 1 . Damage Taken 1243 | . 600 643 Core 260 | . 139 121 Absorbed by Shields . | . . . Core Remaining (%) 100 | 100 . . Volleys Fired 53 | . 44 9 Largest 2 | . 2 2 Hottest 80 | . 80 80 Shots Fired 102 | . 84 18 Gun 86 | . 77 9 Cannon 16 | . 7 9 Launcher . | . . . Special . | . . . Kinetic 53 | . 44 9 Thermal 42 | . 33 9 Explosive . | . . . Electromagnetic 7 | . 7 . Robot Hit Streak 9 | . 9 8 Robot Miss Streak 6 | . 6 2 Penetration Max . | . . . Secondary Targets 2 | . 2 . Max Gunslinging Chain 1 | . 1 . Shots Hit Robots 59 | . 47 12 Core Hits 32 | . 29 3 Critical Kills . | . . . Critical Parts Destroyed 1 | . 1 . Critical Strikes 4 | . 4 . Burn 1 | . 1 . Destroy 1 | . 1 . Blast 1 | . 1 . Corrupt 1 | . 1 . Melee Attacks . | . . . Impact . | . . . Slashing . | . . . Piercing . | . . . Sneak Attacks . | . . . Combat Hostiles . | . . . Follow-up Attacks . | . . . Damage Inflicted 1044 | . 828 216 Guns 732 | . 643 89 Cannons 180 | . 53 127 Explosions 132 | . 132 . Melee . | . . . Ramming . | . . . Kinetic 479 | . 352 127 Thermal 505 | . 416 89 Explosive . | . . . Electromagnetic 60 | . 60 . Impact . | . . . Slashing . | . . . Piercing . | . . . Highest Corruption . | . . . Average Corruption . | . . . Corruption Purged . | . . . Corruption Blocked . | . . . Overload Shots . | . . . Overflow Damage . | . . . Projectiles . | . . . Explosions . | . . . Melee . | . . . Knockbacks 2 | . . 2 Impact . | . . . Kinetic 2 | . . 2 Secondary . | . . . Self-Inflicted Damage 30 | . 30 . Shots 2 | . 2 . Rammed . | . . . Targets Rammed . | . . . Kicked . | . . . Crushed . | . . . Highest Temperature 240 | . 240 92 Average Temperature 67 | . 71 43 Received Heat Transfer 243 | . 234 9 Siege Activations . | . . . Martial Activations . | . . . Shielding Activations . | . . . Robots Disrupted . | . . . Combat Hostiles . | . . . Robots Corrupted . | . . . Combat Hostiles . | . . . Parts Fried . | . . . Impact Corruptions . | . . . Robots Melted . | . . . Combat Hostiles . | . . . Parts Melted 3 | . 3 . Heat Transferred 1384 | . 1125 259 Parts Sabotaged . | . . . Parts Stolen . | . . . Parts Stripped . | . . . Power Chain Reactions 2 | . 2 . Alert | -11 -10 -10 ------- Run | Yrd Mat Min Maximum Alert Level . | . . . Low Security (%) 100 | 100 100 100 Level 1 . | . . . Level 2 . | . . . Level 3 . | . . . Level 4 . | . . . Level 5 . | . . . High Security . | . . . Max Security . | . . . Peak Influence 138 | . 138 71 Initial . | . . . Average 14 | . 22 4 Influence Increases 417 | . 346 71 Destroy 0b10 Robot/C 280 | . 220 60 Destroy 0b10 Robot/NC 25 | . 25 . Destroy Leader 58 | . 48 10 Allied During Kill 1 | . . 1 Successful Hack 32 | . 32 . Destroy Structure 6 | . 6 . Lose Combat Pursuer 15 | . 15 . Influence Decreases 417 | . 346 71 Time Decay 397 | . 326 71 Lost Part 20 | . 20 . Squads Dispatched 1 | . 1 . Investigation . | . . . Extermination . | . . . Reinforcement 1 | . 1 . Assault . | . . . Garrison . | . . . Intercept . | . . . Searches Triggered . | . . . Construction Impeded . | . . . Haulers Reinforced . | . . . Active Scanning Responses . | . . . Cargo Convoy Interrupts . | . . . Stealth | -11 -10 -10 --------- Run | Yrd Mat Min Distress Signals 1 | . 1 . Communications Jammed . | . . . Distress Signals . | . . . Times Spotted 29 | . 23 6 Peak Tracking Total 5 | . 5 3 Tactical Retreats 1 | . 1 . Traps | -11 -10 -10 ------- Run | Yrd Mat Min Traps Triggered . | . . . Indirectly . | . . . Trap Hack Attempts . | . . . Triggered . | . . . Disarmed . | . . . Reprogrammed . | . . . Reused . | . . . Traps Extracted . | . . . Installed . | . . . Triggered . | . . . Machines | -11 -10 -10 ---------- Run | Yrd Mat Min Machines Disabled . | . . . Max in Single Turn . | . . . Machines Repaired . | . . . Machines Dismantled . | . . . Machines Sabotaged . | . . . Overloaded Fab Kills . | . . . Hacking | -11 -10 -10 --------- Run | Yrd Mat Min Machines Accessed 9 | . 8 1 Terminals 7 | . 7 . Fabricators . | . . . Repair Stations 1 | . 1 . Recycling Units . | . . . Scanalyzers . | . . . Garrison Access . | . . . Total Hacks 22 | . 21 1 Successful 12 | . 11 1 Failed 10 | . 10 . Catastrophic 1 | . 1 . Database Lockouts . | . . . Manual 9 | . 9 . Terminals 19 | . 19 . Fabricators . | . . . Repair Stations 2 | . 2 . Recycling Units . | . . . Scanalyzers . | . . . Garrison Access . | . . . Terminal Hacks 10 | . 9 1 Robot Analysis 2 | . 2 . Open Door 1 | . . 1 Branch Access Points 1 | . 1 . Locate Traps 4 | . 4 . Registered Components 1 | . 1 . Zone Layout 1 | . 1 . Fabricator Hacks . | . . . Repair Station Hacks 1 | . 1 . Scan Component 1 | . 1 . Recycling Unit Hacks . | . . . Scanalyzer . | . . . Garrison Access Hacks . | . . . Unauthorized Hacks 1 | . 1 . Terminals 1 | . 1 . Assimilate 1 | . 1 . Fabricators . | . . . Repair Stations . | . . . Recycling Units . | . . . Scanalyzers . | . . . Garrison Access . | . . . Data Cores Recovered . | . . . Used . | . . . Hacking Detections 6 | . 6 . Full Trace Events . | . . . Feedback Events . | . . . Feedback Blocked . | . . . Robot Schematics Acquired . | . . . Robots Built . | . . . Authchips . | . . . Time . | . . . Total Robot Build Rating . | . . . Part Schematics Acquired . | . . . Parts Built . | . . . Authchips . | . . . Time . | . . . Total Part Build Rating . | . . . Part Studies Acquired . | . . . Parts Repaired . | . . . Time . | . . . Parts Recycled . | . . . Recycled Matter . | . . . Retrieved Matter . | . . . Retrieved Components . | . . . Parts Scanalyzed . | . . . Part Schematics Acquired . | . . . Parts Damaged . | . . . Bothacking | -11 -10 -10 ------------ Run | Yrd Mat Min Used RIF Installer . | . . . Robots Hacked . | . . . Non-combat . | . . . Combat . | . . . Robot Hacks Applied . | . . . Relay Couplers Released . | . . . Fabnet Peak Effective % . | . . . Robots Rewired . | . . . Allies Hacked . | . . . Hacks Repelled . | . . . Allies | -11 -10 -10 -------- Run | Yrd Mat Min Total Allies 2 | . 1 1 Largest Group 1 | . 1 1 Highest-Rated Group 31 | . 10 31 Highest-Rated Ally 31 | . 10 31 Total Orders . | . . . Ally Attacks 1 | . . 1 Total Damage 22 | . . 22 Kills 1 | . . 1 Allies Corrupted . | . . . Allies Melted . | . . . Intel | -11 -10 -10 ------- Run | Yrd Mat Min Active Infowar (turns) . | . . . Robot Analysis Total 2 | . 2 . Derelict Logs Recovered 1 | . . 1 Drone Launches . | . . . Drone Recoveries . | . . . Exploration | -11 -10 -10 ------------- Run | Yrd Mat Min Turns Passed 2873 | 31 1616 1226 Spaces Moved 1387 | 39 814 534 Core 64 | 39 25 . Treads 1323 | . 789 534 Legs . | . . . Wheels . | . . . Hover . | . . . Flight . | . . . Fastest Speed 50 | 50 50 160 Average Speed 187 | 50 176 215 Slowest Speed 240 | 50 240 240 Overloaded Moves . | . . . Propulsion Burnouts . | . . . Robots Hopped . | . . . Potential Cave-ins . | . . . Cave-ins Triggered . | . . . Exploration Rate (%) 56 | 3 98 69 Regions Visited 2 Branch Regions 1 Pre-discovered Areas . | . . . Known Exits Taken 1 | . 1 . Unknown Exits Taken 1 | 1 . . Scrap Searched 2 | . . 2 Spaces Dug . | . . . Terrain Destroyed 6 | . 6 . Melee . | . . . Projectile . | . . . AOE 6 | . 6 . Terrain Rammed . | . . . Walls Destroyed . | . . . Machines Disabled . | . . . Actions | -11 -10 -10 --------- Run | Yrd Mat Min Total 1551 | 49 910 592 Wait 73 | . 32 41 Move 1385 | 38 813 534 Hop . | . . . Pick Up 23 | 8 8 7 Fast Attach 2 | . 2 . Attach 9 | 3 5 1 Detach . | . . . Swap 3 | . 3 . Drop 3 | . 3 . Fire 53 | . 44 9 Melee . | . . . Ram . | . . . Kick . | . . . Crush . | . . . Escape Stasis . | . . . Rewire . | . . . Trap . | . . . Miscellaneous . | . . . Route ------- -11/Scrapyard -10/Materials (discovered 4 exits: [*Mat x3] / *Min) -10/Mines (discovered 1 exit: [*Mat]) History --------- Turn | Location | Event 8 | -11/Scrapyard | Discovered new exit (range 14) 32 | -11/Scrapyard | Entered Materials 289 | -10/Materials | Core integrity fell below 50% 310 | -10/Materials | Build established: Mutant 322 | -10/Materials | Discovered new exit (range 9) 695 | -10/Materials | Discovered new exit (range 12) 813 | -10/Materials | Discovered new exit (range 13) 1076 | -10/Materials | Identified exit to Mines 1297 | -10/Materials | Discovered new exit (range 3) 1648 | -10/Materials | Entered Mines 1682 | -10/Mines | Learned Materials terminal intel 1913 | -10/Mines | Received a Mining Laser from a helpful Derelict 2552 | -10/Mines | Joined a pair of Derelicts in attacking an 0b10 outpost 2650 | -10/Mines | Discovered new exit (range 10) 2830 | -10/Mines | Assembled infested the area 2835 | -10/Mines | Assisted by a Guerilla fighting off Assembled 2846 | -10/Mines | Found the Drone Emporium 2854 | -10/Mines | Found Prototype Device 2869 | -10/Mines | Core integrity fell below 20% 2874 | -10/Mines | Destroyed by D-53 Grenadier with Mini Grenade Launcher Last Messages --------------- strings attached!" 02854_ Acquired Prototype Device. 02857_ C-45 Heavy ARC bursts open, deploying its payload. 02857_ D-53 Grenadier unfolds itself. 02857_ Machine disabled. 02857_ D-53 Grenadier knocked back. 02857_ Lgt. Ion Engine destroyed. 02860_ D-53 Grenadier knocked back. 02862_ SHOP.Sys disabled. 02863_ Destroyed Carbon-fiber Leg. 02864_ Acquired 3 matter. 02865_ The unstable cave ceiling collapses. 02866_ UM-RP0(g) destroyed. 02868_ The unstable cave ceiling collapses. 02868_ Lgt. Treads destroyed. 02868_ D-53 Grenadier destroyed. 02870_ U-05 Engineer lays Concrete. 02872_ Lgt. Cannon destroyed. 02872_ Hrd. Light Armor Plating destroyed. 02873_ U-05 Engineer builds a Wall. Map ----- +----------------------------------------------------+ | | | | | ??????????????????????????????????????????? | | ??????????????????????????????????????????? | | ??????????????????????????????????????????? | | ???###????????????????????????????????????? | | ??## ##???????????????????????????????????? | | ?## #???????????????????????????????????? | | ## #???????????????????????????????????? | | #????????????????????????????????????? | | ##???????????????????????????????????? | | ##??????????????????????????????????? | | ##????????????????????##???????????? | | #???????????????????? #???????????? | | #??????????????????? #???????????? | | ##?????????????????? #???????????? | | ####??????????????? #???????????? | | ## ##?????????????# #???????????? | | ?# #????????????# ####????????? | | ?# #???????????? $ ####?????? | | ?# ### #????????#### ??????? | | ?# #?### #???????## ????????? | | ?# #???## #??????## ??????????? | | ?# #????# ##?????# #???????????? | | ?# #???## ##????# ##??????????? | | ?# #??## #????# @ #??????????? | | ## #?## #????# ##??????????? | | #?# ##????# #???????????? | | #?# #?????# #???????????? | | #####?# #?????## #???????????? | | ## ##?# """ #?????##u #???????????? | | # #?# """ #?????# #???????????? | | ##?# """% #?????# %d % #???????? | | ##?## %%######## ###########???????? | | #??# #?# ##?????????????????? | | #??# #### #?# #??????????????????? | | ##??## #??# #?# #??????????????????? | | ##????# ####### ### #??????????????????? | | ??????## #????# #??????????????????? | | ???????###?????# ##### #??????????????????? | | ???????????????# #???# #??????????????????? | | ???????????????# #???# #??????????????????? | | ???#####???????# #???# ??????????????????? | | #### #####???# #???###??????????????????? | | ! ##??# #????????????????????????? | | ! #### #????????????????????????? | | #### #????????????????????????? | | ???# # ######????????????????????????? | | ???# ## #?????????????????????????????? | | ???# ## #?????????????????????????????? | +----------------------------------------------------+ Best States ------------- Heat Dissipation 39 Energy Generation 10 Energy Capacity 125 Matter Stores 300 Matter Capacity 300 Sight Range 16 Terrain Scan Density 10 Armor Coverage 150 Evasion (%) 50 Recoil Reduction 2 Item Schematics ----------------- None Robot Schematics ------------------ None Fabricated ------------ Nothing Repaired ---------- Nothing Studied --------- None Alien Tech Used ----------------- None Achievements -------------- None Challenges ------------ None Game ------ Seed AntigravRelayForcegen Manual? 0 Play Time 00:11:37 Cumulative 237.6 hours Start 2026.09.23 @ 19:36:46 End 2026.09.23 @ 20:24:47 Sessions 2 Manual Loads 0 Difficulty Rogue Special Mode None Game No. 366 Rogue 363 Adventurer 3 Explorer 0 Win Type - Total 2 Types 2/0/0/0/0/0/0/0/0/0 Lore% 69 Gallery% 58 Achievement% 36 Wizard Run 0 Options --------- Layout 0 ASCII 0 Keyboard 0 Movement Mouse Keybinds 0 Fullscreen 2 Font 18/SmallcapsGlow Map View 76x50 Zoom Use 0% Tactical HUD 1 Map Filters NONE Filters NONE Steam 1 RUN: 23c0f163-e945-428f-82f0-4e435dec8a78